fUSD/lending_fUSD_20260523
["ID","MTS","AMOUNT","RATE_DAILY","PERIOD"]
[422841271,1779508243000,-589.0,0.000148,5]
[422841268,1779508243000,-500.0,0.00014799,2]
[422841269,1779508243000,-500.0,0.00014799,2]
[422841263,1779508243000,-500.0,0.00014799,2]
[422841264,1779508243000,-455.46575353,0.00014799,2]
[422841261,1779508243000,-500.0,0.00014799,2]
[422841259,1779508243000,-190.86257963,0.0001479,2]
[422841258,1779508243000,-152.0,0.00014708,7]
[422841265,1779508243000,-500.0,0.00014799,2]
[422841267,1779508243000,-500.0,0.00014799,2]
[422841273,1779508243000,-624.67,0.000148,2]
[422841260,1779508243000,-500.0,0.00014799,2]
[422841255,1779508243000,-500.0,0.00014649,2]
[422841277,1779508244000,-933.445,0.000148,2]
[422841279,1779508244000,-319.71,0.000148,2]
[422841278,1779508244000,-696.98180984,0.000148,2]
[422841296,1779508247000,-500.0,0.0001309,2]
[422841357,1779508258000,200.0,5e-05,30]
[422841360,1779508397000,151.0,8e-05,2]
[422841362,1779508483000,421.86,7.03e-05,2]
[422841361,1779508483000,421.86,6.679e-05,2]
[422841364,1779508484000,421.86,7.734e-05,2]
[422841363,1779508484000,421.86,7.382e-05,2]
[422841365,1779508650000,276.0,0.00028082,120]
[422841366,1779509212000,-421.86,8.085e-05,2]
[422841367,1779509212000,-250.0,8.105e-05,2]
[422841375,1779509213000,-420.0,8.8e-05,2]
[422841374,1779509213000,-421.86,8.788e-05,2]
[422841372,1779509213000,-208.78535381,8.32e-05,2]
[422841369,1779509213000,-35627.1776,8.165e-05,2]
[422841371,1779509213000,-160.0,8.32e-05,2]
[422841370,1779509213000,-193.0,8.17e-05,2]
[422841368,1779509213000,-1200.0,8.164e-05,2]
[422841373,1779509213000,-421.86,8.437e-05,2]
[422841378,1779509213000,-1680.0,8.981e-05,2]
[422841376,1779509213000,-250.0,8.894e-05,2]
[422841379,1779509213000,-353.22,8.982e-05,2]
[422841387,1779509213000,215.31523495,8.32e-05,2]
[422841385,1779509213000,-1736.55,8.982e-05,2]
[422841386,1779509213000,-9999.99,8.982e-05,2]
[422841384,1779509213000,-150.99,8.982e-05,2]
[422841377,1779509213000,-9999.99,8.981e-05,2]
[422841383,1779509213000,-17333.67,8.982e-05,2]
[422841382,1779509213000,-999.99,8.982e-05,2]
[422841380,1779509213000,-299.99,8.982e-05,2]
[422841381,1779509213000,-9999.99,8.982e-05,2]
[422841388,1779509219000,1747.647,8.065e-05,2]
[422841389,1779509225000,-421.86,9.14e-05,2]
[422841444,1779509244000,-5512.01477355,9.463e-05,2]
[422841443,1779509244000,-300.0,9.462e-05,2]
[422841442,1779509244000,-196.24003769,9.428e-05,2]
[422841441,1779509244000,-250.0,9.301e-05,2]
[422841445,1779509339000,-43013.0,8.882e-05,2]
[422841446,1779509340000,1000.0,0.00028081,120]
[422841450,1779509375000,2000.0,0.00028082,120]
[422841451,1779509382000,2000.0,0.00028082,120]
[422841452,1779509389000,2000.0,0.00028082,120]
[422841453,1779509394000,2000.0,0.00028082,120]
[422841454,1779509400000,2000.0,0.00028082,120]
[422841455,1779509406000,2000.0,0.00028082,120]
[422841456,1779509412000,2000.0,0.00028082,120]
[422841457,1779509420000,2000.0,0.00028082,120]
[422841458,1779509426000,2000.0,0.00028082,120]
[422841473,1779509431000,-6805.7175,8.882e-05,2]
[422841471,1779509431000,-196.33991082,8.881e-05,2]
[422841470,1779509431000,-156.21755613,8.881e-05,2]
[422841469,1779509431000,-500.0,8.881e-05,2]
[422841467,1779509431000,-463.58411126,8.881e-05,2]
[422841465,1779509431000,-150.0,8.881e-05,2]
[422841466,1779509431000,-1150.98030544,8.881e-05,2]
[422841468,1779509431000,-209.92478006,8.881e-05,2]
[422841478,1779509431000,-283.59542965,9.202e-05,2]
[422841459,1779509431000,-1200.0,8.88e-05,2]
[422841462,1779509431000,-489.19999995,8.881e-05,2]
[422841461,1779509431000,-300.0,8.88e-05,2]
[422841460,1779509431000,-300.0,8.88e-05,2]
[422841464,1779509431000,-300.0,8.881e-05,2]
[422841472,1779509431000,-56148.3149,8.882e-05,2]
[422841463,1779509431000,-510.80000005,8.881e-05,2]
[422841475,1779509431000,-160.0,8.893e-05,2]
[422841474,1779509431000,-209.92478005,8.882e-05,2]
[422841497,1779509431000,-44741.7250467,9.933e-05,2]
[422841495,1779509431000,-421.86,9.843e-05,2]
[422841493,1779509431000,-299.99,9.769e-05,2]
[422841487,1779509431000,-9999.99,9.769e-05,2]
[422841489,1779509431000,-1196.68,9.769e-05,2]
[422841485,1779509431000,-250.0,9.769e-05,2]
[422841491,1779509431000,-999.99,9.769e-05,2]
[422841483,1779509431000,-500.0,9.769e-05,2]
[422841480,1779509431000,-1680.0,9.768e-05,2]
[422841481,1779509431000,-181.0,9.768e-05,2]
[422841479,1779509431000,-421.86,9.491e-05,2]
[422841477,1779509431000,-163.76,8.987e-05,2]
[422841476,1779509431000,-208.78535381,8.893e-05,2]
[422841482,1779509431000,-150.0,9.769e-05,2]
[422841543,1779509432000,-642.0,0.0001184,2]
[422841541,1779509432000,-642.0,0.0001184,2]
[422841542,1779509432000,-642.0,0.0001184,2]
[422841539,1779509432000,-642.0,0.0001184,2]
[422841540,1779509432000,-642.0,0.0001184,2]
[422841534,1779509432000,-642.0,0.0001184,2]
[422841537,1779509432000,-642.0,0.0001184,2]
[422841536,1779509432000,-642.0,0.0001184,2]
[422841535,1779509432000,-642.0,0.0001184,2]
[422841533,1779509432000,-642.0,0.0001184,2]
[422841532,1779509432000,-642.0,0.0001184,2]
[422841538,1779509432000,-642.0,0.0001184,2]
[422841544,1779509432000,-642.0,0.0001184,2]
[422841550,1779509432000,-642.0,0.0001184,2]
[422841546,1779509432000,-642.0,0.0001184,2]
[422841548,1779509432000,-642.0,0.0001184,2]
[422841552,1779509432000,-642.0,0.0001184,2]
[422841549,1779509432000,-642.0,0.0001184,2]
[422841551,1779509432000,-642.0,0.0001184,2]
[422841531,1779509432000,-642.0,0.0001184,2]
[422841554,1779509432000,-500.0,0.0001184,2]
[422841553,1779509432000,-642.0,0.0001184,2]
[422841555,1779509432000,-660.07976925,0.0001184,2]
[422841559,1779509432000,-315.44579433,0.00012055,2]
[422841556,1779509432000,-1000.0,0.0001194,2]
[422841557,1779509432000,-421.86,0.00011952,2]
[422841545,1779509432000,-642.0,0.0001184,2]
[422841530,1779509432000,-628.56911631,0.0001184,2]
[422841524,1779509432000,-250.0,0.00011735,2]
[422841528,1779509432000,-500.0,0.0001184,2]
[422841499,1779509432000,-500.0,0.00010054,2]
[422841501,1779509432000,-250.0,0.00010054,2]
[422841503,1779509432000,-421.86,0.00010194,2]
[422841504,1779509432000,-539.0,0.00010244,2]
[422841506,1779509432000,-421.86,0.00010546,2]
[422841507,1779509432000,-164.93,0.00010628,2]
[422841505,1779509432000,-588.73,0.00010368,2]
[422841509,1779509432000,-2000.0,0.00010631,2]
[422841510,1779509432000,-268.32,0.00010667,2]
[422841514,1779509432000,-2351.0,0.00010745,2]
[422841513,1779509432000,-500.0,0.00010744,2]
[422841511,1779509432000,-5206.0,0.00010681,2]
[422841512,1779509432000,-409.84529142,0.00010744,2]
[422841508,1779509432000,-200.0,0.00010628,2]
[422841515,1779509432000,-500.0,0.0001084,2]
[422841516,1779509432000,-421.86,0.00010897,2]
[422841517,1779509432000,-150.0,0.00010969,2]
[422841518,1779509432000,-1392.46,0.00011013,2]
[422841520,1779509432000,-1392.46,0.00011288,2]
[422841519,1779509432000,-421.86,0.00011249,2]
[422841522,1779509432000,-1392.46,0.00011564,2]
[422841521,1779509432000,-150.0,0.0001136,2]
[422841558,1779509432000,-2000.0,0.0001196,2]
[422841523,1779509432000,-421.86,0.000116,2]
[422841525,1779509432000,-1392.46,0.00011839,2]
[422841527,1779509432000,-500.0,0.0001184,2]
[422841526,1779509432000,-288.74058885,0.0001184,2]
[422841529,1779509432000,-500.0,0.0001184,2]
[422841560,1779509432000,-770.7589289,0.00012055,2]
[422841547,1779509432000,-642.0,0.0001184,2]
[422841563,1779509432000,-1392.46,0.00012114,2]
[422841594,1779509432000,-858.0,0.00012542,2]
[422841595,1779509432000,-491.0,0.00012542,2]
[422841596,1779509432000,-858.0,0.00012542,2]
[422841597,1779509432000,-491.0,0.00012542,2]
[422841599,1779509432000,-491.0,0.00012542,2]
[422841598,1779509432000,-858.0,0.00012542,2]
[422841600,1779509432000,-858.0,0.00012542,2]
[422841602,1779509432000,-491.0,0.00012542,2]
[422841604,1779509432000,-491.0,0.00012542,2]
[422841605,1779509432000,-858.0,0.00012542,2]
[422841603,1779509432000,-858.0,0.00012542,2]
[422841601,1779509432000,-491.0,0.00012542,2]
[422841606,1779509432000,-491.0,0.00012542,2]
[422841607,1779509432000,-858.0,0.00012542,2]
[422841609,1779509432000,-858.0,0.00012542,2]
[422841610,1779509432000,-491.0,0.00012542,2]
[422841608,1779509432000,-491.0,0.00012542,2]
[422841611,1779509432000,-858.0,0.00012542,2]
[422841612,1779509432000,-491.0,0.00012542,2]
[422841561,1779509432000,-577.61138007,0.00012055,2]
[422841613,1779509432000,-858.0,0.00012542,2]
[422841616,1779509432000,-491.0,0.00012542,2]
[422841615,1779509432000,-858.0,0.00012542,2]
[422841618,1779509432000,-493.24228737,0.00012542,2]
[422841617,1779509432000,-877.74751989,0.00012542,2]
[422841620,1779509432000,-500.0,0.00012542,2]
[422841619,1779509432000,-500.0,0.00012542,2]
[422841593,1779509432000,-858.0,0.00012542,2]
[422841590,1779509432000,-491.0,0.00012542,2]
[422841614,1779509432000,-491.0,0.00012542,2]
[422841591,1779509432000,-858.0,0.00012542,2]
[422841592,1779509432000,-491.0,0.00012542,2]
[422841564,1779509432000,-500.0,0.00012247,2]
[422841562,1779509432000,-500.0,0.00012114,2]
[422841565,1779509432000,-421.86,0.00012303,2]
[422841566,1779509432000,-1163.8,0.00012329,2]
[422841567,1779509432000,-500.0,0.00012542,2]
[422841568,1779509432000,-858.0,0.00012542,2]
[422841571,1779509432000,-858.0,0.00012542,2]
[422841570,1779509432000,-500.0,0.00012542,2]
[422841569,1779509432000,-491.0,0.00012542,2]
[422841573,1779509432000,-500.0,0.00012542,2]
[422841575,1779509432000,-491.0,0.00012542,2]
[422841574,1779509432000,-858.0,0.00012542,2]
[422841572,1779509432000,-491.0,0.00012542,2]
[422841577,1779509432000,-491.0,0.00012542,2]
[422841576,1779509432000,-333.07140429,0.00012542,2]
[422841587,1779509432000,-491.0,0.00012542,2]
[422841588,1779509432000,-858.0,0.00012542,2]
[422841586,1779509432000,-858.0,0.00012542,2]
[422841584,1779509432000,-858.0,0.00012542,2]
[422841585,1779509432000,-491.0,0.00012542,2]
[422841589,1779509432000,-858.0,0.00012542,2]
[422841582,1779509432000,-858.0,0.00012542,2]
[422841581,1779509432000,-491.0,0.00012542,2]
[422841579,1779509432000,-491.0,0.00012542,2]
[422841580,1779509432000,-858.0,0.00012542,2]
[422841578,1779509432000,-858.0,0.00012542,2]
[422841583,1779509432000,-491.0,0.00012542,2]
[422841643,1779509433000,-500.0,0.00012542,2]
[422841645,1779509433000,-500.0,0.00012542,2]
[422841648,1779509433000,-1158.0,0.00012542,2]
[422841646,1779509433000,-1158.0,0.00012542,2]
[422841647,1779509433000,-500.0,0.00012542,2]
[422841650,1779509433000,-1158.0,0.00012542,2]
[422841649,1779509433000,-500.0,0.00012542,2]
[422841651,1779509433000,-500.0,0.00012542,2]
[422841653,1779509433000,-500.0,0.00012542,2]
[422841660,1779509433000,-48.00482752,0.00012542,2]
[422841654,1779509433000,-1158.0,0.00012542,2]
[422841655,1779509433000,-354.49313884,0.00012542,2]
[422841656,1779509433000,-1158.0,0.00012542,2]
[422841659,1779509433000,-451.99517248,0.00012542,2]
[422841658,1779509433000,-1158.0,0.00012542,2]
[422841661,1779509433000,-1158.0,0.00012542,2]
[422841662,1779509433000,-566.44136017,0.00012542,2]
[422841664,1779509433000,-1158.0,0.00012542,2]
[422841644,1779509433000,-1158.0,0.00012542,2]
[422841652,1779509433000,-1158.0,0.00012542,2]
[422841642,1779509433000,-1158.0,0.00012542,2]
[422841628,1779509433000,-1158.0,0.00012542,2]
[422841640,1779509433000,-335.0245225,0.00012542,2]
[422841665,1779509433000,-1158.0,0.00012542,2]
[422841623,1779509433000,-500.0,0.00012542,2]
[422841622,1779509433000,-500.0,0.00012542,2]
[422841621,1779509433000,-500.0,0.00012542,2]
[422841625,1779509433000,-1158.0,0.00012542,2]
[422841624,1779509433000,-500.0,0.00012542,2]
[422841627,1779509433000,-500.0,0.00012542,2]
[422841626,1779509433000,-500.0,0.00012542,2]
[422841629,1779509433000,-500.0,0.00012542,2]
[422841631,1779509433000,-500.0,0.00012542,2]
[422841630,1779509433000,-1158.0,0.00012542,2]
[422841632,1779509433000,-500.0,0.00012542,2]
[422841633,1779509433000,-1158.0,0.00012542,2]
[422841636,1779509433000,-1158.0,0.00012542,2]
[422841635,1779509433000,-500.0,0.00012542,2]
[422841634,1779509433000,-500.0,0.00012542,2]
[422841638,1779509433000,-1158.0,0.00012542,2]
[422841637,1779509433000,-500.0,0.00012542,2]
[422841639,1779509433000,-500.0,0.00012542,2]
[422841641,1779509433000,-500.0,0.00012542,2]
[422841663,1779509433000,-1158.0,0.00012542,2]
[422841657,1779509433000,-1158.0,0.00012542,2]
[422841668,1779509433000,-1158.0,0.00012542,2]
[422841690,1779509433000,-625.0,0.0001309,2]
[422841692,1779509433000,-927.0,0.0001309,2]
[422841694,1779509433000,-1271.0,0.0001309,2]
[422841693,1779509433000,-1355.0,0.0001309,2]
[422841695,1779509433000,-1224.0,0.0001309,2]
[422841697,1779509433000,-12088.19818268,0.00013202,2]
[422841696,1779509433000,-2500.0,0.00013102,2]
[422841698,1779509433000,-2000.0,0.00013288,2]
[422841700,1779509433000,-1852.42,0.00013398,2]
[422841699,1779509433000,-421.86,0.00013358,2]
[422841701,1779509433000,-12088.19818268,0.00013414,2]
[422841704,1779509433000,-150.0,0.00013488,2]
[422841703,1779509433000,-150.0,0.00013488,2]
[422841702,1779509433000,-153.58436248,0.00013488,2]
[422841706,1779509433000,-150.0,0.00013488,2]
[422841705,1779509433000,-150.0,0.00013488,2]
[422841708,1779509433000,-11683.18728514,0.000135,2]
[422841707,1779509433000,-150.0,0.00013488,2]
[422841709,1779509433000,-5601.93958111,0.000135,2]
[422841691,1779509433000,-3546.0,0.0001309,2]
[422841689,1779509433000,-150.0,0.0001309,2]
[422841667,1779509433000,-1158.0,0.00012542,2]
[422841686,1779509433000,-150.085,0.0001309,2]
[422841688,1779509433000,-150.085,0.0001309,2]
[422841666,1779509433000,-1158.0,0.00012542,2]
[422841669,1779509433000,-1173.93907188,0.00012542,2]
[422841670,1779509433000,-500.0,0.00012542,2]
[422841710,1779509433000,-900.0,0.000135,2]
[422841671,1779509433000,-500.0,0.00012542,2]
[422841672,1779509433000,-500.0,0.00012542,2]
[422841677,1779509433000,-931.0,0.00012979,2]
[422841676,1779509433000,-421.86,0.00012655,2]
[422841674,1779509433000,-500.0,0.00012542,2]
[422841673,1779509433000,-500.0,0.00012542,2]
[422841679,1779509433000,-9666.98337699,0.0001299,2]
[422841678,1779509433000,-3635.0,0.00012979,2]
[422841680,1779509433000,-2421.21480578,0.0001299,2]
[422841687,1779509433000,-150.0,0.0001309,2]
[422841681,1779509433000,-421.86,0.00013007,2]
[422841683,1779509433000,-2500.0,0.00013082,2]
[422841682,1779509433000,-500.0,0.00013014,2]
[422841685,1779509433000,-150.0,0.0001309,2]
[422841684,1779509433000,-1200.0,0.00013082,2]
[422841675,1779509433000,-496.77049006,0.00012542,2]
[422841711,1779509434000,-1.8695,0.000135,2]
[422841712,1779509434000,922.65,5.062e-05,2]
[422841716,1779509434000,2000.0,0.00028082,120]
[422841714,1779509434000,922.65,5.595e-05,2]
[422841715,1779509434000,922.65,5.861e-05,2]
[422841713,1779509434000,922.65,5.328e-05,2]
[422841718,1779509435000,922.65,6.394e-05,2]
[422841717,1779509435000,922.65,6.128e-05,2]
[422841719,1779509435000,922.65,6.66e-05,2]
[422841723,1779509435000,922.65,7.726e-05,2]
[422841721,1779509435000,922.65,7.193e-05,2]
[422841722,1779509435000,922.65,7.46e-05,2]
[422841724,1779509435000,922.65,7.993e-05,2]
[422841720,1779509435000,922.65,6.927e-05,2]
[422841725,1779509437000,-584.892,8.259e-05,2]
[422841727,1779509437000,-162.242,8.525e-05,2]
[422841726,1779509437000,-337.758,8.259e-05,2]
[422841747,1779509438000,-500.0,0.00010744,2]
[422841745,1779509438000,-500.0,0.00010744,2]
[422841741,1779509438000,-500.0,0.00010744,2]
[422841743,1779509438000,-500.0,0.00010744,2]
[422841740,1779509438000,-500.0,0.00010744,2]
[422841738,1779509438000,-500.0,0.00010744,2]
[422841739,1779509438000,-500.0,0.00010744,2]
[422841737,1779509438000,-500.0,0.00010744,2]
[422841733,1779509438000,-922.65,9.591e-05,2]
[422841734,1779509438000,-922.65,9.857e-05,2]
[422841736,1779509438000,-500.0,0.00010744,2]
[422841731,1779509438000,-922.65,9.058e-05,2]
[422841732,1779509438000,-922.65,9.325e-05,2]
[422841728,1779509438000,-760.408,8.525e-05,2]
[422841730,1779509438000,-215.31523495,8.892e-05,2]
[422841729,1779509438000,-922.65,8.792e-05,2]
[422841752,1779509438000,-500.0,0.00010744,2]
[422841735,1779509438000,-922.65,0.00010124,2]
[422841750,1779509438000,-500.0,0.00010744,2]
[422841762,1779509438000,-500.0,0.00010744,2]
[422841753,1779509438000,-500.0,0.00010744,2]
[422841775,1779509438000,-5000.0,0.00013608,2]
[422841771,1779509438000,-500.0,0.00010744,2]
[422841772,1779509438000,-15018.66953375,0.000135,2]
[422841769,1779509438000,-500.0,0.00010744,2]
[422841764,1779509438000,-500.0,0.00010744,2]
[422841766,1779509438000,-500.0,0.00010744,2]
[422841768,1779509438000,-500.0,0.00010744,2]
[422841776,1779509438000,-219.04459301,0.00013608,2]
[422841777,1779509438000,-7184.92225429,0.00013627,2]
[422841759,1779509438000,-500.0,0.00010744,2]
[422841760,1779509438000,-500.0,0.00010744,2]
[422841758,1779509438000,-500.0,0.00010744,2]
[422841756,1779509438000,-500.0,0.00010744,2]
[422841757,1779509438000,-370.8748906,0.00010744,2]
[422841754,1779509438000,-500.0,0.00010744,2]
[422841755,1779509438000,-500.0,0.00010744,2]
[422841774,1779509438000,-2000.0,0.00013608,2]
[422841748,1779509438000,-500.0,0.00010744,2]
[422841779,1779509439000,-342.108,0.00013627,2]
[422841780,1779509440000,-4561.16792839,0.00013627,2]
[422841795,1779509440000,-500.0,0.00013707,2]
[422841793,1779509440000,-200.0,0.00013699,2]
[422841788,1779509440000,-556.92,0.00013698,2]
[422841786,1779509440000,-556.92,0.00013698,2]
[422841790,1779509440000,-500.0,0.00013698,2]
[422841792,1779509440000,-166.66,0.00013699,2]
[422841796,1779509440000,-212.42040885,0.00013707,2]
[422841789,1779509440000,-500.0,0.00013698,2]
[422841787,1779509440000,-556.92,0.00013698,2]
[422841784,1779509440000,-500.0,0.00013698,2]
[422841783,1779509440000,-500.0,0.00013698,2]
[422841785,1779509440000,-555.06801264,0.00013698,2]
[422841782,1779509440000,-500.0,0.00013698,2]
[422841781,1779509440000,-190.86257963,0.00013698,2]
[422841791,1779509440000,-500.0,0.00013698,2]
[422841797,1779509440000,-550.47565976,0.00013707,2]
[422841805,1779509440000,-500.0,0.00013707,2]
[422841799,1779509440000,-500.0,0.00013707,2]
[422841814,1779509440000,-886133.20870566,0.00013708,2]
[422841811,1779509440000,-500.0,0.00013707,2]
[422841813,1779509440000,-299.3113989,0.00013707,2]
[422841812,1779509440000,-500.0,0.00013707,2]
[422841810,1779509440000,-150.0,0.00013707,2]
[422841808,1779509440000,-500.0,0.00013707,2]
[422841806,1779509440000,-500.0,0.00013707,2]
[422841809,1779509440000,-592.0817962,0.00013707,2]
[422841794,1779509440000,-361.45378304,0.00013707,2]
[422841816,1779509440000,2000.0,0.00028082,120]
[422841803,1779509440000,-500.0,0.00013707,2]
[422841801,1779509440000,-500.0,0.00013707,2]
[422841804,1779509440000,-500.0,0.00013707,2]
[422841802,1779509440000,-500.0,0.00013707,2]
[422841800,1779509440000,-500.0,0.00013707,2]
[422841798,1779509440000,-181.3762397,0.00013707,2]
[422841807,1779509440000,-500.0,0.00013707,2]
[422841819,1779509443000,-329.09659755,0.00013396,2]
[422841818,1779509443000,-1405.5428917,0.00013708,2]
[422841828,1779509446000,2000.0,0.00028082,120]
[422841840,1779509457000,2000.0,0.00028082,120]
[422841841,1779509463000,2000.0,0.00028082,120]
[422841842,1779509471000,2000.0,0.00028082,120]
[422841843,1779509477000,2000.0,0.00028082,120]
[422841844,1779509483000,2000.0,0.00028082,120]
[422841845,1779509490000,2000.0,0.00028082,120]
[422841846,1779509496000,2000.0,0.00028082,120]
[422841847,1779509503000,2000.0,0.00028082,120]
[422841848,1779509512000,2000.0,0.00028082,120]
[422841849,1779509520000,2000.0,0.00028082,120]
[422841850,1779509527000,2000.0,0.00028082,120]
[422841851,1779509533000,2000.0,0.00028082,120]
[422841852,1779509539000,1500.0,0.00028082,120]
[422841853,1779509549000,262.0,0.00028082,120]
[422841857,1779510221000,175.79166674,0.00028,120]
[422841858,1779510232000,351.58333348,0.00028,120]
[422841859,1779510271000,527.37500022,0.00028,120]
[422841860,1779510312000,200.0,7.978e-05,2]
[422841907,1779510472000,328.68,7.821e-05,2]
[422841908,1779510540000,1000.0,0.00028081,120]
[422841911,1779510601000,230.82,6.214e-05,2]
[422841923,1779510631000,-197.0,8.416e-05,2]
[422841913,1779510631000,-250.0,8.036e-05,2]
[422841912,1779510631000,-632.58,8.015e-05,2]
[422841915,1779510631000,-197.0,8.095e-05,2]
[422841916,1779510631000,-250.0,8.12e-05,2]
[422841918,1779510631000,-197.0,8.255e-05,2]
[422841914,1779510631000,-3529.52,8.057e-05,2]
[422841920,1779510631000,-160.47,8.358e-05,2]
[422841919,1779510631000,-197.0,8.336e-05,2]
[422841922,1779510631000,-2535.63,8.416e-05,2]
[422841924,1779510631000,-197.0,8.496e-05,2]
[422841921,1779510631000,-1200.0,8.415e-05,2]
[422841917,1779510631000,-197.0,8.175e-05,2]
[422841948,1779510632000,-1021.122,8.756e-05,2]
[422841953,1779510632000,-253.18773766,8.78e-05,2]
[422841950,1779510632000,-999.99,8.78e-05,2]
[422841979,1779510632000,-351.11080756,8.781e-05,2]
[422841967,1779510632000,-500.0,8.781e-05,2]
[422841965,1779510632000,-500.0,8.781e-05,2]
[422841968,1779510632000,-500.0,8.781e-05,2]
[422841981,1779510632000,-500.0,8.781e-05,2]
[422841944,1779510632000,-9999.99,8.756e-05,2]
[422841955,1779510632000,-385.33296183,8.781e-05,2]
[422841942,1779510632000,-2368.27,8.756e-05,2]
[422841932,1779510632000,-2500.0,8.682e-05,2]
[422841937,1779510632000,-150.0,8.755e-05,2]
[422841940,1779510632000,-299.99,8.756e-05,2]
[422841934,1779510632000,-197.0,8.736e-05,2]
[422841935,1779510632000,-176.86446494,8.738e-05,2]
[422841930,1779510632000,-197.0,8.656e-05,2]
[422841931,1779510632000,-183.2,8.667e-05,2]
[422841929,1779510632000,-9715.97,8.64e-05,2]
[422841926,1779510632000,-1200.0,8.541e-05,2]
[422841927,1779510632000,-8275.98522645,8.542e-05,2]
[422841925,1779510632000,-151.0,8.5e-05,2]
[422841928,1779510632000,-197.0,8.576e-05,2]
[422841946,1779510632000,-150.99,8.756e-05,2]
[422841982,1779510632000,-510.58291989,8.781e-05,2]
[422841989,1779510632000,-603.01764813,8.781e-05,2]
[422841980,1779510632000,-480.18479821,8.781e-05,2]
[422841970,1779510632000,-500.0,8.781e-05,2]
[422842002,1779510632000,-5638.0,8.782e-05,2]
[422842001,1779510632000,-529.50748251,8.782e-05,2]
[422841998,1779510632000,-1254.41808677,8.782e-05,2]
[422842000,1779510632000,-1114.36445043,8.782e-05,2]
[422841997,1779510632000,-21515.20700329,8.782e-05,2]
[422841999,1779510632000,-706.95471448,8.782e-05,2]
[422841995,1779510632000,-291279.6352896,8.782e-05,2]
[422841985,1779510632000,-500.0,8.781e-05,2]
[422841994,1779510632000,-509.8413,8.782e-05,2]
[422841988,1779510632000,-500.0,8.781e-05,2]
[422841984,1779510632000,-500.0,8.781e-05,2]
[422841996,1779510632000,-21192.63211677,8.782e-05,2]
[422841987,1779510632000,-500.0,8.781e-05,2]
[422841974,1779510632000,-500.0,8.781e-05,2]
[422841972,1779510632000,-500.0,8.781e-05,2]
[422841976,1779510632000,-263.09362555,8.781e-05,2]
[422841977,1779510632000,-500.0,8.781e-05,2]
[422841983,1779510632000,-501.22631882,8.781e-05,2]
[422841978,1779510632000,-500.0,8.781e-05,2]
[422841991,1779510632000,-500.0,8.781e-05,2]
[422841986,1779510632000,-500.0,8.781e-05,2]
[422841993,1779510632000,-300.0,8.781e-05,2]
[422841992,1779510632000,-500.0,8.781e-05,2]
[422841990,1779510632000,-500.0,8.781e-05,2]
[422842006,1779510638000,-411.48747887,8.781e-05,2]
[422842155,1779510640000,-500.0,8.781e-05,2]
[422842153,1779510640000,-500.0,8.781e-05,2]
[422842156,1779510640000,-500.0,8.781e-05,2]
[422842154,1779510640000,-500.0,8.781e-05,2]
[422842161,1779510640000,-500.0,8.781e-05,2]
[422842163,1779510640000,-500.0,8.781e-05,2]
[422842160,1779510640000,-500.0,8.781e-05,2]
[422842157,1779510640000,-500.0,8.781e-05,2]
[422842162,1779510640000,-500.0,8.781e-05,2]
[422842152,1779510640000,-500.0,8.781e-05,2]
[422842158,1779510640000,-500.0,8.781e-05,2]
[422842151,1779510640000,-500.0,8.781e-05,2]